[Event "Titled Tuesday Blitz May 4 2021"]
[White "Poghosyan, Suren"]
[Black "Fanha, Paulo"]
[WhiteFideId "13303201"]
[BlackFideId "1902148"]
[WhiteElo "2314"]
[BlackElo "1851"]
[Result "1-0"]
[Round "06"]
[TimeControl "180+1"]
[Date "2021.05.04"]
[WhiteClock "0:00:25"]
[BlackClock "0:00:02"]

1. e4 {[%clk 0:03:00]}  d5 {[%clk 0:02:59]} 2. exd5 {[%clk 0:03:00]}  Qxd5 {[%clk 0:02:24]} 3. Nf3 {[%clk 0:02:59]}  c6 {[%clk 0:02:20]} 4. d4 {[%clk 0:02:58]}  Nf6 {[%clk 0:02:16]} 5. c4 {[%clk 0:02:58]}  Qd8 {[%clk 0:02:14]} 6. Nc3 {[%clk 0:02:57]}  Bg4 {[%clk 0:02:12]} 7. Be2 {[%clk 0:02:58]}  e6 {[%clk 0:02:11]} 8. Bf4 {[%clk 0:02:56]}  Bd6 {[%clk 0:02:07]} 9. Ne5 {[%clk 0:02:55]}  Bxe2 {[%clk 0:02:06]} 10. Qxe2 {[%clk 0:02:55]}  O-O {[%clk 0:02:03]} 11. O-O {[%clk 0:02:54]}  Bc7 {[%clk 0:01:54]} 12. Rad1 {[%clk 0:02:53]}  Nbd7 {[%clk 0:01:43]} 13. Ne4 {[%clk 0:02:37]}  Nxe4 {[%clk 0:01:39]} 14. Qxe4 {[%clk 0:02:38]}  Nxe5 {[%clk 0:01:36]} 15. dxe5 {[%clk 0:02:36]}  Qe7 {[%clk 0:01:32]} 16. h3 {[%clk 0:02:29]}  Rad8 {[%clk 0:01:27]} 17. Rfe1 {[%clk 0:02:24]}  Rxd1 {[%clk 0:01:25]} 18. Rxd1 {[%clk 0:02:25]}  Rd8 {[%clk 0:01:24]} 19. Qe2 {[%clk 0:02:19]}  Rxd1+ {[%clk 0:01:21]} 20. Qxd1 {[%clk 0:02:20]}  Qd8 {[%clk 0:01:20]} 21. Qb3 {[%clk 0:02:14]}  Bb6 {[%clk 0:01:12]} 22. Be3 {[%clk 0:02:02]}  Bxe3 {[%clk 0:01:08]} 23. Qxe3 {[%clk 0:02:03]}  Qb6 {[%clk 0:00:59]} 24. Qc3 {[%clk 0:01:08]}  Qd8 {[%clk 0:00:53]} 25. g3 {[%clk 0:01:04]}  Qd1+ {[%clk 0:00:50]} 26. Kg2 {[%clk 0:01:04]}  h6 {[%clk 0:00:46]} 27. Qa3 {[%clk 0:00:57]}  Qd4 {[%clk 0:00:33]} 28. Qd6 {[%clk 0:00:39]}  Qe4+ {[%clk 0:00:24]} 29. Kh2 {[%clk 0:00:38]}  Qe2 {[%clk 0:00:20]} 30. Qd4 {[%clk 0:00:36]}  Kh7 {[%clk 0:00:17]} 31. Kg2 {[%clk 0:00:35]}  g6 {[%clk 0:00:11]} 32. a3 {[%clk 0:00:35]}  Qc2 {[%clk 0:00:03]} 33. b4 {[%clk 0:00:34]}  Qb3 {[%clk 0:00:02]} 34. Qxa7 {[%clk 0:00:25]} 1-0


[Site "https://www.chess.com"]

[Event "Titled Tuesday Blitz May 4 2021"]
[White "Poormosavi, Seyed Kian"]
[Black "Martinez Lopez, David"]
[WhiteFideId "12585807"]
[BlackFideId "22235779"]
[WhiteElo "2134"]
[BlackElo "2366"]
[Result "1-0"]
[Round "06"]
[TimeControl "180+1"]
[Date "2021.05.04"]
[WhiteClock "0:01:08"]
[BlackClock "0:00:01"]

1. e4 {[%clk 0:02:59]}  c5 {[%clk 0:02:59]} 2. Nf3 {[%clk 0:03:00]}  d6 {[%clk 0:02:59]} 3. c4 {[%clk 0:02:59]}  Nc6 {[%clk 0:02:58]} 4. Nc3 {[%clk 0:03:00]}  g6 {[%clk 0:02:52]} 5. d4 {[%clk 0:02:59]}  cxd4 {[%clk 0:02:51]} 6. Nxd4 {[%clk 0:02:59]}  Bg7 {[%clk 0:02:51]} 7. Be3 {[%clk 0:02:59]}  Nf6 {[%clk 0:02:51]} 8. f3 {[%clk 0:02:58]}  O-O {[%clk 0:02:51]} 9. Be2 {[%clk 0:02:58]}  Nxd4 {[%clk 0:02:46]} 10. Bxd4 {[%clk 0:02:58]}  Bd7 {[%clk 0:02:45]} 11. Qd2 {[%clk 0:02:58]}  a5 {[%clk 0:02:45]} 12. g4 {[%clk 0:02:56]}  Bc6 {[%clk 0:02:41]} 13. h4 {[%clk 0:02:53]}  Nd7 {[%clk 0:00:44]} 14. Bxg7 {[%clk 0:02:48]}  Kxg7 {[%clk 0:00:45]} 15. h5 {[%clk 0:02:49]}  Rh8 {[%clk 0:00:46]} 16. Qd4+ {[%clk 0:02:26]}  f6 {[%clk 0:00:42]} 17. O-O-O {[%clk 0:01:56]}  Qb6 {[%clk 0:00:34]} 18. Qd2 {[%clk 0:01:54]}  Qc5 {[%clk 0:00:21]} 19. Kb1 {[%clk 0:01:51]}  a4 {[%clk 0:00:20]} 20. Nd5 {[%clk 0:01:50]}  Bxd5 {[%clk 0:00:19]} 21. cxd5 {[%clk 0:01:49]}  g5 {[%clk 0:00:14]} 22. Rc1 {[%clk 0:01:44]}  Qb6 {[%clk 0:00:14]} 23. h6+ {[%clk 0:01:37]}  Kf7 {[%clk 0:00:13]} 24. f4 {[%clk 0:01:36]}  gxf4 {[%clk 0:00:12]} 25. Qxf4 {[%clk 0:01:35]}  a3 {[%clk 0:00:12]} 26. b3 {[%clk 0:01:33]}  Qd4 {[%clk 0:00:12]} 27. Rc2 {[%clk 0:01:33]}  Rhc8 {[%clk 0:00:12]} 28. Rhc1 {[%clk 0:01:28]}  Ne5 {[%clk 0:00:08]} 29. Qf5 {[%clk 0:01:22]}  Rxc2 {[%clk 0:00:05]} 30. Rxc2 {[%clk 0:01:23]}  Nd3 {[%clk 0:00:05]} 31. Qxh7+ {[%clk 0:01:21]}  Ke8 {[%clk 0:00:04]} 32. Qg6+ {[%clk 0:01:06]}  Kd7 {[%clk 0:00:03]} 33. Qf5+ {[%clk 0:01:06]}  Kd8 {[%clk 0:00:03]} 34. h7 {[%clk 0:01:06]}  Qg1+ {[%clk 0:00:01]} 35. Qf1 {[%clk 0:01:07]}  Qxf1+ {[%clk 0:00:01]} 36. Bxf1 {[%clk 0:01:08]} 1-0


[Site "https://www.chess.com"]

[Event "Titled Tuesday Blitz May 4 2021"]
[White "Porter, Ryan W"]
[Black "Palchuk, Andrii"]
[WhiteFideId "2011239"]
[BlackFideId "14176688"]
[WhiteElo "2398"]
[BlackElo "2184"]
[Result "0-1"]
[Round "06"]
[TimeControl "180+1"]
[Date "2021.05.04"]
[WhiteClock "0:00:03"]
[BlackClock "0:00:13"]

1. c4 {[%clk 0:03:00]}  e6 {[%clk 0:02:57]} 2. Nf3 {[%clk 0:02:59]}  d5 {[%clk 0:02:56]} 3. e3 {[%clk 0:02:59]}  Nf6 {[%clk 0:02:56]} 4. Nc3 {[%clk 0:02:59]}  Be7 {[%clk 0:02:54]} 5. b3 {[%clk 0:02:58]}  O-O {[%clk 0:02:52]} 6. Bb2 {[%clk 0:02:59]}  c5 {[%clk 0:02:45]} 7. cxd5 {[%clk 0:02:58]}  Nxd5 {[%clk 0:02:44]} 8. Nxd5 {[%clk 0:02:52]}  Qxd5 {[%clk 0:02:43]} 9. Qc2 {[%clk 0:02:46]}  Nc6 {[%clk 0:02:42]} 10. a3 {[%clk 0:02:46]}  b6 {[%clk 0:02:40]} 11. Bd3 {[%clk 0:02:41]}  h6 {[%clk 0:02:31]} 12. Be4 {[%clk 0:02:34]}  Qd6 {[%clk 0:02:31]} 13. O-O {[%clk 0:02:28]}  Bb7 {[%clk 0:02:28]} 14. d4 {[%clk 0:02:21]}  cxd4 {[%clk 0:02:24]} 15. Nxd4 {[%clk 0:02:20]}  Nxd4 {[%clk 0:02:23]} 16. Bxd4 {[%clk 0:02:19]}  Rac8 {[%clk 0:02:23]} 17. Qb1 {[%clk 0:02:13]}  Bxe4 {[%clk 0:02:14]} 18. Qxe4 {[%clk 0:02:14]}  Qc6 {[%clk 0:02:08]} 19. Qg4 {[%clk 0:02:05]}  f6 {[%clk 0:02:01]} 20. e4 {[%clk 0:01:34]}  Kh7 {[%clk 0:01:38]} 21. b4 {[%clk 0:01:23]}  a5 {[%clk 0:00:50]} 22. bxa5 {[%clk 0:01:20]}  bxa5 {[%clk 0:00:51]} 23. a4 {[%clk 0:01:04]}  Qc4 {[%clk 0:00:41]} 24. Be3 {[%clk 0:01:02]}  f5 {[%clk 0:00:38]} 25. Qf3 {[%clk 0:00:40]}  Qxe4 {[%clk 0:00:32]} 26. Qxe4 {[%clk 0:00:40]}  fxe4 {[%clk 0:00:33]} 27. Rfc1 {[%clk 0:00:39]}  Bb4 {[%clk 0:00:29]} 28. Kf1 {[%clk 0:00:35]}  Kg6 {[%clk 0:00:28]} 29. Ke2 {[%clk 0:00:31]}  Kf5 {[%clk 0:00:28]} 30. h3 {[%clk 0:00:19]}  e5 {[%clk 0:00:28]} 31. Rxc8 {[%clk 0:00:17]}  Rxc8 {[%clk 0:00:27]} 32. Rc1 {[%clk 0:00:18]}  Rxc1 {[%clk 0:00:25]} 33. Bxc1 {[%clk 0:00:19]}  Ke6 {[%clk 0:00:25]} 34. Kd1 {[%clk 0:00:11]}  Kd5 {[%clk 0:00:22]} 35. Kc2 {[%clk 0:00:11]}  Kc4 {[%clk 0:00:16]} 36. Bb2 {[%clk 0:00:11]}  Bc5 {[%clk 0:00:16]} 37. Bxe5 {[%clk 0:00:09]}  Bxf2 {[%clk 0:00:16]} 38. Bxg7 {[%clk 0:00:09]}  e3 {[%clk 0:00:16]} 39. Bxh6 {[%clk 0:00:06]}  e2 {[%clk 0:00:11]} 40. Bd2 {[%clk 0:00:06]}  e1=Q {[%clk 0:00:11]} 41. Bxe1 {[%clk 0:00:06]}  Bxe1 {[%clk 0:00:12]} 42. g4 {[%clk 0:00:03]}  Bh4 {[%clk 0:00:13]} 0-1


[Site "https://www.chess.com"]

[Event "Titled Tuesday Blitz May 4 2021"]
[White "Ptacnikova, Lenka"]
[Black "Grunberg, Mihai-Lucian"]
[WhiteFideId "305650"]
[BlackFideId "1204149"]
[WhiteElo "1984"]
[BlackElo "2364"]
[Result "0-1"]
[Round "06"]
[TimeControl "180+1"]
[Date "2021.05.04"]
[WhiteClock "0:01:47"]
[BlackClock "0:02:13"]

1. c4 {[%clk 0:03:00]}  Nf6 {[%clk 0:02:59]} 2. g3 {[%clk 0:03:01]}  g6 {[%clk 0:03:00]} 3. Bg2 {[%clk 0:03:01]}  d5 {[%clk 0:03:00]} 4. cxd5 {[%clk 0:03:00]}  Nxd5 {[%clk 0:03:00]} 5. Nf3 {[%clk 0:03:01]}  Bg7 {[%clk 0:03:00]} 6. O-O {[%clk 0:03:01]}  O-O {[%clk 0:03:00]} 7. Nc3 {[%clk 0:03:00]}  c5 {[%clk 0:02:59]} 8. Nxd5 {[%clk 0:02:57]}  Qxd5 {[%clk 0:02:58]} 9. d3 {[%clk 0:02:57]}  Nc6 {[%clk 0:02:58]} 10. a3 {[%clk 0:02:55]}  b6 {[%clk 0:02:52]} 11. Be3 {[%clk 0:02:50]}  Bb7 {[%clk 0:02:49]} 12. Nd4 {[%clk 0:02:41]}  Qd7 {[%clk 0:02:46]} 13. Nxc6 {[%clk 0:02:40]}  Bxc6 {[%clk 0:02:45]} 14. Bxc6 {[%clk 0:02:39]}  Qxc6 {[%clk 0:02:45]} 15. Qd2 {[%clk 0:02:40]}  Rfd8 {[%clk 0:02:42]} 16. Rac1 {[%clk 0:02:35]}  Rac8 {[%clk 0:02:41]} 17. b4 {[%clk 0:02:32]}  c4 {[%clk 0:02:36]} 18. Rxc4 {[%clk 0:02:28]}  Qxc4 {[%clk 0:02:35]} 19. dxc4 {[%clk 0:02:26]}  Rxd2 {[%clk 0:02:35]} 20. Bxd2 {[%clk 0:02:25]}  Rxc4 {[%clk 0:02:36]} 21. Rc1 {[%clk 0:02:23]}  Rxc1+ {[%clk 0:02:30]} 22. Bxc1 {[%clk 0:02:22]}  Kf8 {[%clk 0:02:30]} 23. Kg2 {[%clk 0:02:19]}  Ke8 {[%clk 0:02:29]} 24. Kf3 {[%clk 0:02:19]}  Kd7 {[%clk 0:02:29]} 25. Ke4 {[%clk 0:02:20]}  Kc6 {[%clk 0:02:28]} 26. a4 {[%clk 0:02:09]}  b5 {[%clk 0:02:28]} 27. axb5+ {[%clk 0:02:03]}  Kxb5 {[%clk 0:02:28]} 28. Be3 {[%clk 0:02:02]}  a6 {[%clk 0:02:25]} 29. Bc5 {[%clk 0:02:01]}  Bc3 {[%clk 0:02:20]} 30. Bxe7 {[%clk 0:01:58]}  Bxb4 {[%clk 0:02:20]} 31. Bf6 {[%clk 0:01:56]}  Kc4 {[%clk 0:02:19]} 32. f4 {[%clk 0:01:50]}  a5 {[%clk 0:02:18]} 33. g4 {[%clk 0:01:47]}  a4 {[%clk 0:02:17]} 34. f5 {[%clk 0:01:48]}  a3 {[%clk 0:02:14]} 35. fxg6 {[%clk 0:01:47]}  fxg6 {[%clk 0:02:13]} 0-1


[Site "https://www.chess.com"]

[Event "Titled Tuesday Blitz May 4 2021"]
[White "Quesada Perez, Yasser"]
[Black "Weetik, Vjacheslav"]
[WhiteFideId "3509362"]
[BlackFideId "4153472"]
[WhiteElo "2420"]
[BlackElo "2469"]
[Result "0-1"]
[Round "06"]
[TimeControl "180+1"]
[Date "2021.05.04"]
[WhiteClock "0:00:03"]
[BlackClock "0:00:06"]

1. e4 {[%clk 0:03:00]}  c6 {[%clk 0:02:56]} 2. c4 {[%clk 0:02:55]}  e5 {[%clk 0:02:56]} 3. Nf3 {[%clk 0:02:54]}  d6 {[%clk 0:02:56]} 4. Nc3 {[%clk 0:02:53]}  Be7 {[%clk 0:02:55]} 5. d4 {[%clk 0:02:50]}  Nd7 {[%clk 0:02:54]} 6. Be2 {[%clk 0:02:47]}  Ngf6 {[%clk 0:02:55]} 7. O-O {[%clk 0:02:47]}  O-O {[%clk 0:02:55]} 8. Qc2 {[%clk 0:02:44]}  Re8 {[%clk 0:02:54]} 9. b3 {[%clk 0:02:38]}  Bf8 {[%clk 0:02:52]} 10. Bb2 {[%clk 0:02:36]}  exd4 {[%clk 0:02:48]} 11. Nxd4 {[%clk 0:02:36]}  Nc5 {[%clk 0:02:49]} 12. f3 {[%clk 0:02:29]}  d5 {[%clk 0:02:41]} 13. exd5 {[%clk 0:02:26]}  cxd5 {[%clk 0:02:41]} 14. Rad1 {[%clk 0:02:26]}  dxc4 {[%clk 0:01:59]} 15. Bxc4 {[%clk 0:02:25]}  Qb6 {[%clk 0:01:58]} 16. Kh1 {[%clk 0:02:21]}  Bd7 {[%clk 0:01:51]} 17. Nf5 {[%clk 0:02:07]}  Be6 {[%clk 0:01:41]} 18. Nd5 {[%clk 0:01:47]}  Bxd5 {[%clk 0:01:33]} 19. Bxd5 {[%clk 0:01:48]}  Nxd5 {[%clk 0:01:28]} 20. Rxd5 {[%clk 0:01:48]}  Rad8 {[%clk 0:01:21]} 21. Qd2 {[%clk 0:01:23]}  Rxd5 {[%clk 0:01:14]} 22. Qxd5 {[%clk 0:01:24]}  Rd8 {[%clk 0:01:13]} 23. Qc4 {[%clk 0:01:18]}  Qe6 {[%clk 0:00:36]} 24. Qg4 {[%clk 0:00:29]}  Nd3 {[%clk 0:00:23]} 25. Bd4 {[%clk 0:00:15]}  g6 {[%clk 0:00:17]} 26. Qg5 {[%clk 0:00:12]}  Rd5 {[%clk 0:00:09]} 27. g4 {[%clk 0:00:12]}  Qe2 {[%clk 0:00:06]} 28. Kg1 {[%clk 0:00:11]}  Rxd4 {[%clk 0:00:01]} 29. Nxd4 {[%clk 0:00:11]}  Bc5 {[%clk 0:00:02]} 30. Qd8+ {[%clk 0:00:10]}  Kg7 {[%clk 0:00:03]} 31. Qd5 {[%clk 0:00:07]}  Qe3+ {[%clk 0:00:03]} 32. Kg2 {[%clk 0:00:08]}  Bxd4 {[%clk 0:00:04]} 33. Qe4 {[%clk 0:00:08]}  Nf4+ {[%clk 0:00:04]} 34. Kg3 {[%clk 0:00:07]}  Ne2+ {[%clk 0:00:03]} 35. Kg2 {[%clk 0:00:08]}  Nf4+ {[%clk 0:00:03]} 36. Kg3 {[%clk 0:00:08]}  Qxe4 {[%clk 0:00:02]} 37. fxe4 {[%clk 0:00:08]}  Be5 {[%clk 0:00:03]} 38. Kf3 {[%clk 0:00:08]}  Ne6 {[%clk 0:00:03]} 39. h3 {[%clk 0:00:08]}  Kf6 {[%clk 0:00:01]} 40. h4 {[%clk 0:00:08]}  h6 {[%clk 0:00:01]} 41. Rd1 {[%clk 0:00:08]}  Ke7 {[%clk 0:00:01]} 42. Ke3 {[%clk 0:00:08]}  g5 {[%clk 0:00:02]} 43. h5 {[%clk 0:00:08]}  Nf4 {[%clk 0:00:02]} 44. Kf3 {[%clk 0:00:08]}  Ne6 {[%clk 0:00:03]} 45. Rc1 {[%clk 0:00:08]}  Bc7 {[%clk 0:00:03]} 46. Ke3 {[%clk 0:00:08]}  Bb6+ {[%clk 0:00:03]} 47. Kd3 {[%clk 0:00:08]}  Kd6 {[%clk 0:00:04]} 48. Rf1 {[%clk 0:00:07]}  Nf4+ {[%clk 0:00:04]} 49. Kc4 {[%clk 0:00:07]}  Ke5 {[%clk 0:00:05]} 50. Rd1 {[%clk 0:00:07]}  Kxe4 {[%clk 0:00:05]} 51. Rd7 {[%clk 0:00:07]}  f5 {[%clk 0:00:05]} 52. Rd6 {[%clk 0:00:06]}  fxg4 {[%clk 0:00:05]} 53. Rxh6 {[%clk 0:00:06]}  g3 {[%clk 0:00:06]} 54. Rd6 {[%clk 0:00:05]}  g2 {[%clk 0:00:06]} 55. Rd1 {[%clk 0:00:03]}  g1=Q {[%clk 0:00:06]} 0-1


[Site "https://www.chess.com"]

[Event "Titled Tuesday Blitz May 4 2021"]
[White "Quparadze, Giga"]
[Black "Belous, Vladimir"]
[WhiteFideId "13602250"]
[BlackFideId "4174003"]
[WhiteElo "2658"]
[BlackElo "2583"]
[Result "1-0"]
[Round "06"]
[TimeControl "180+1"]
[Date "2021.05.04"]
[WhiteClock "0:01:16"]
[BlackClock "0:00:09"]

1. e4 {[%clk 0:03:00]}  c5 {[%clk 0:02:59]} 2. Nf3 {[%clk 0:03:00]}  Nc6 {[%clk 0:02:59]} 3. Bb5 {[%clk 0:02:59]}  g6 {[%clk 0:02:59]} 4. O-O {[%clk 0:02:58]}  Bg7 {[%clk 0:03:00]} 5. c3 {[%clk 0:02:55]}  Nf6 {[%clk 0:03:00]} 6. Re1 {[%clk 0:02:54]}  O-O {[%clk 0:03:00]} 7. d4 {[%clk 0:02:55]}  Qb6 {[%clk 0:02:59]} 8. Bxc6 {[%clk 0:02:40]}  bxc6 {[%clk 0:02:54]} 9. b3 {[%clk 0:02:37]}  d5 {[%clk 0:02:38]} 10. e5 {[%clk 0:02:30]}  Ne4 {[%clk 0:02:34]} 11. Ba3 {[%clk 0:02:29]}  Re8 {[%clk 0:01:50]} 12. h3 {[%clk 0:02:21]}  Ba6 {[%clk 0:01:42]} 13. Qc2 {[%clk 0:02:14]}  f5 {[%clk 0:01:26]} 14. Nbd2 {[%clk 0:02:11]}  Qa5 {[%clk 0:01:14]} 15. Qb2 {[%clk 0:01:43]}  Bh6 {[%clk 0:00:38]} 16. Nf1 {[%clk 0:01:40]}  Qxc3 {[%clk 0:00:30]} 17. Qxc3 {[%clk 0:01:39]}  Nxc3 {[%clk 0:00:31]} 18. Bxc5 {[%clk 0:01:40]}  Ne4 {[%clk 0:00:30]} 19. Bb4 {[%clk 0:01:39]}  Rab8 {[%clk 0:00:28]} 20. a3 {[%clk 0:01:39]}  e6 {[%clk 0:00:25]} 21. Ra2 {[%clk 0:01:35]}  Bf8 {[%clk 0:00:23]} 22. Bxf8 {[%clk 0:01:34]}  Kxf8 {[%clk 0:00:23]} 23. b4 {[%clk 0:01:33]}  Bxf1 {[%clk 0:00:19]} 24. Rxf1 {[%clk 0:01:32]}  a5 {[%clk 0:00:19]} 25. bxa5 {[%clk 0:01:31]}  Ra8 {[%clk 0:00:15]} 26. Rc1 {[%clk 0:01:31]}  Rec8 {[%clk 0:00:15]} 27. Rac2 {[%clk 0:01:28]}  Rxa5 {[%clk 0:00:14]} 28. Rxc6 {[%clk 0:01:28]}  Rxc6 {[%clk 0:00:15]} 29. Rxc6 {[%clk 0:01:29]}  Kf7 {[%clk 0:00:15]} 30. Rc7+ {[%clk 0:01:28]}  Kg8 {[%clk 0:00:09]} 31. Re7 {[%clk 0:01:28]}  h6 {[%clk 0:00:09]} 32. Rxe6 {[%clk 0:01:27]}  Kf7 {[%clk 0:00:10]} 33. Rb6 {[%clk 0:01:24]}  Rxa3 {[%clk 0:00:10]} 34. e6+ {[%clk 0:01:24]}  Kf6 {[%clk 0:00:10]} 35. Ne5 {[%clk 0:01:24]}  Ra1+ {[%clk 0:00:09]} 36. Kh2 {[%clk 0:01:24]}  f4 {[%clk 0:00:10]} 37. e7+ {[%clk 0:01:20]}  Kxe7 {[%clk 0:00:09]} 38. Nxg6+ {[%clk 0:01:20]}  Kf7 {[%clk 0:00:08]} 39. Nxf4 {[%clk 0:01:20]}  Nxf2 {[%clk 0:00:09]} 40. Nxd5 {[%clk 0:01:19]}  h5 {[%clk 0:00:09]} 41. Rf6+ {[%clk 0:01:18]}  Kg7 {[%clk 0:00:09]} 42. Rxf2 {[%clk 0:01:19]}  Rd1 {[%clk 0:00:09]} 43. Ne3 {[%clk 0:01:19]}  Rd3 {[%clk 0:00:09]} 44. Nf5+ {[%clk 0:01:19]}  Kg6 {[%clk 0:00:09]} 45. h4 {[%clk 0:01:17]}  Rd1 {[%clk 0:00:08]} 46. g3 {[%clk 0:01:17]}  Rd3 {[%clk 0:00:08]} 47. Kg2 {[%clk 0:01:17]}  Kf6 {[%clk 0:00:09]} 48. d5 {[%clk 0:01:17]}  Kg6 {[%clk 0:00:09]} 49. d6 {[%clk 0:01:17]}  Kf6 {[%clk 0:00:09]} 50. Rf4 {[%clk 0:01:16]}  Ke5 {[%clk 0:00:09]} 51. Rd4 {[%clk 0:01:16]} 1-0


[Site "https://www.chess.com"]

[Event "Titled Tuesday Blitz May 4 2021"]
[White "Rojas Alarcon, Julian Antonio"]
[Black "Seul, Georg"]
[WhiteFideId "5107407"]
[BlackFideId "4601653"]
[WhiteElo "2333"]
[BlackElo "2332"]
[Result "1-0"]
[Round "06"]
[TimeControl "180+1"]
[Date "2021.05.04"]
[WhiteClock "0:00:17"]
[BlackClock "0:00:01"]

1. c4 {[%clk 0:02:56]}  e5 {[%clk 0:02:59]} 2. Nc3 {[%clk 0:02:55]}  Bb4 {[%clk 0:02:58]} 3. g3 {[%clk 0:02:55]}  Bxc3 {[%clk 0:02:58]} 4. bxc3 {[%clk 0:02:56]}  d6 {[%clk 0:02:58]} 5. Bg2 {[%clk 0:02:56]}  f5 {[%clk 0:02:58]} 6. d3 {[%clk 0:02:57]}  Nf6 {[%clk 0:02:58]} 7. Rb1 {[%clk 0:02:57]}  Nc6 {[%clk 0:02:56]} 8. Nf3 {[%clk 0:02:58]}  O-O {[%clk 0:02:55]} 9. O-O {[%clk 0:02:57]}  Qe8 {[%clk 0:02:53]} 10. Nd2 {[%clk 0:02:52]}  Qh5 {[%clk 0:02:50]} 11. e3 {[%clk 0:02:51]}  Qh6 {[%clk 0:02:36]} 12. Re1 {[%clk 0:02:34]}  Kh8 {[%clk 0:02:10]} 13. Nf1 {[%clk 0:02:33]}  e4 {[%clk 0:02:08]} 14. d4 {[%clk 0:02:28]}  Na5 {[%clk 0:02:05]} 15. c5 {[%clk 0:02:12]}  d5 {[%clk 0:01:57]} 16. Qa4 {[%clk 0:01:47]}  b6 {[%clk 0:01:47]} 17. Ba3 {[%clk 0:01:45]}  Re8 {[%clk 0:01:34]} 18. Nd2 {[%clk 0:01:38]}  Bd7 {[%clk 0:01:23]} 19. Qc2 {[%clk 0:01:34]}  b5 {[%clk 0:01:13]} 20. Bb4 {[%clk 0:01:12]}  Nc6 {[%clk 0:01:13]} 21. a4 {[%clk 0:01:13]}  bxa4 {[%clk 0:01:11]} 22. Ba3 {[%clk 0:01:09]}  g5 {[%clk 0:00:58]} 23. Rb7 {[%clk 0:01:03]}  Rac8 {[%clk 0:00:57]} 24. c4 {[%clk 0:00:55]}  Be6 {[%clk 0:00:47]} 25. Qxa4 {[%clk 0:00:51]}  Ne7 {[%clk 0:00:38]} 26. c6 {[%clk 0:00:46]}  f4 {[%clk 0:00:33]} 27. cxd5 {[%clk 0:00:44]}  Nexd5 {[%clk 0:00:29]} 28. exf4 {[%clk 0:00:28]}  Ng4 {[%clk 0:00:13]} 29. Nf1 {[%clk 0:00:28]}  gxf4 {[%clk 0:00:10]} 30. Qd1 {[%clk 0:00:24]}  f3 {[%clk 0:00:10]} 31. Bh1 {[%clk 0:00:21]}  Bf5 {[%clk 0:00:09]} 32. Bc1 {[%clk 0:00:20]}  Qh5 {[%clk 0:00:08]} 33. Rb5 {[%clk 0:00:20]}  Rcd8 {[%clk 0:00:04]} 34. Bd2 {[%clk 0:00:18]}  e3 {[%clk 0:00:03]} 35. Bxe3 {[%clk 0:00:19]}  Ndxe3 {[%clk 0:00:03]} 36. Qxf3 {[%clk 0:00:18]}  Be4 {[%clk 0:00:02]} 37. Rxh5 {[%clk 0:00:17]}  Bxf3 {[%clk 0:00:01]} 38. Bxf3 {[%clk 0:00:17]} 1-0


[Site "https://www.chess.com"]

[Event "Titled Tuesday Blitz May 4 2021"]
[White "Rorrer, Grayson"]
[Black "Schut, Han"]
[WhiteFideId "30944996"]
[BlackFideId "1005561"]
[WhiteElo "2397"]
[BlackElo "2057"]
[Result "0-1"]
[Round "06"]
[TimeControl "180+1"]
[Date "2021.05.04"]
[WhiteClock "0:02:14"]
[BlackClock "0:01:32"]

1. e4 {[%clk 0:03:00]}  c5 {[%clk 0:02:53]} 2. Nf3 {[%clk 0:02:59]}  d6 {[%clk 0:02:52]} 3. d4 {[%clk 0:02:59]}  cxd4 {[%clk 0:02:53]} 4. Nxd4 {[%clk 0:03:00]}  Nf6 {[%clk 0:02:53]} 5. Nc3 {[%clk 0:03:00]}  g6 {[%clk 0:02:53]} 6. Be3 {[%clk 0:03:00]}  Bg7 {[%clk 0:02:53]} 7. f3 {[%clk 0:03:00]}  O-O {[%clk 0:02:52]} 8. Qd2 {[%clk 0:03:01]}  Nc6 {[%clk 0:02:53]} 9. Bc4 {[%clk 0:03:01]}  Bd7 {[%clk 0:02:53]} 10. O-O-O {[%clk 0:03:00]}  Rc8 {[%clk 0:02:53]} 11. Bb3 {[%clk 0:03:00]}  Nxd4 {[%clk 0:02:54]} 12. Bxd4 {[%clk 0:03:01]}  b5 {[%clk 0:02:54]} 13. Nd5 {[%clk 0:02:57]}  Nxd5 {[%clk 0:02:44]} 14. Bxg7 {[%clk 0:02:56]}  Kxg7 {[%clk 0:02:43]} 15. exd5 {[%clk 0:02:57]}  a5 {[%clk 0:02:42]} 16. a3 {[%clk 0:02:57]}  Bf5 {[%clk 0:02:29]} 17. c3 {[%clk 0:02:49]}  b4 {[%clk 0:02:25]} 18. axb4 {[%clk 0:02:48]}  axb4 {[%clk 0:02:22]} 19. Qd4+ {[%clk 0:02:49]}  Kg8 {[%clk 0:02:14]} 20. Qxb4 {[%clk 0:02:43]}  Rb8 {[%clk 0:02:12]} 21. Qa3 {[%clk 0:02:34]}  Qb6 {[%clk 0:01:56]} 22. Bc4 {[%clk 0:02:16]}  Ra8 {[%clk 0:01:43]} 23. Qb4 {[%clk 0:02:14]}  Qe3+ {[%clk 0:01:32]} 0-1


[Site "https://www.chess.com"]

[Event "Titled Tuesday Blitz May 4 2021"]
[White "Rustemov, Alexander"]
[Black "Kiselev, Gennady"]
[WhiteFideId "4119002"]
[BlackFideId "4117107"]
[WhiteElo "2614"]
[BlackElo "2323"]
[Result "1-0"]
[Round "06"]
[TimeControl "180+1"]
[Date "2021.05.04"]
[WhiteClock "0:01:02"]
[BlackClock "0:00:02"]

1. d4 {[%clk 0:03:00]}  d5 {[%clk 0:02:54]} 2. c4 {[%clk 0:03:00]}  dxc4 {[%clk 0:02:51]} 3. Nf3 {[%clk 0:02:59]}  Nf6 {[%clk 0:02:50]} 4. e3 {[%clk 0:02:59]}  e6 {[%clk 0:02:49]} 5. Bxc4 {[%clk 0:02:59]}  c5 {[%clk 0:02:48]} 6. O-O {[%clk 0:03:00]}  a6 {[%clk 0:02:46]} 7. e4 {[%clk 0:03:00]}  cxd4 {[%clk 0:02:40]} 8. e5 {[%clk 0:02:59]}  Nfd7 {[%clk 0:02:39]} 9. Qxd4 {[%clk 0:02:59]}  Nc6 {[%clk 0:02:36]} 10. Qf4 {[%clk 0:02:56]}  Be7 {[%clk 0:02:32]} 11. Qg3 {[%clk 0:02:55]}  O-O {[%clk 0:02:22]} 12. Bh6 {[%clk 0:02:54]}  g6 {[%clk 0:02:21]} 13. Bxf8 {[%clk 0:02:54]}  Bxf8 {[%clk 0:02:21]} 14. Nbd2 {[%clk 0:02:50]}  Bg7 {[%clk 0:02:15]} 15. Rfe1 {[%clk 0:02:48]}  Qc7 {[%clk 0:02:12]} 16. Rac1 {[%clk 0:02:47]}  b5 {[%clk 0:01:50]} 17. Bd3 {[%clk 0:02:45]}  Bb7 {[%clk 0:01:49]} 18. Be4 {[%clk 0:02:45]}  Qb6 {[%clk 0:01:45]} 19. h4 {[%clk 0:02:40]}  Rd8 {[%clk 0:01:38]} 20. Bxc6 {[%clk 0:02:39]}  Bxc6 {[%clk 0:01:36]} 21. Ne4 {[%clk 0:02:38]}  Bxe4 {[%clk 0:01:24]} 22. Rxe4 {[%clk 0:02:38]}  Nc5 {[%clk 0:01:21]} 23. Re2 {[%clk 0:02:36]}  Nd3 {[%clk 0:01:14]} 24. Rd1 {[%clk 0:02:33]}  Rd5 {[%clk 0:01:04]} 25. Red2 {[%clk 0:02:31]}  Nb4 {[%clk 0:00:25]} 26. Rxd5 {[%clk 0:02:28]}  Nxd5 {[%clk 0:00:24]} 27. h5 {[%clk 0:02:22]}  Qa5 {[%clk 0:00:23]} 28. hxg6 {[%clk 0:02:21]}  hxg6 {[%clk 0:00:22]} 29. a3 {[%clk 0:02:18]}  Qa4 {[%clk 0:00:21]} 30. Rd4 {[%clk 0:02:15]}  Qc2 {[%clk 0:00:19]} 31. Qg5 {[%clk 0:02:14]}  Qxb2 {[%clk 0:00:14]} 32. Qd8+ {[%clk 0:02:11]}  Bf8 {[%clk 0:00:13]} 33. Rh4 {[%clk 0:01:52]}  Qxa3 {[%clk 0:00:09]} 34. Kh2 {[%clk 0:01:27]}  Qe7 {[%clk 0:00:07]} 35. Qb8 {[%clk 0:01:27]}  b4 {[%clk 0:00:06]} 36. Rc4 {[%clk 0:01:26]}  a5 {[%clk 0:00:04]} 37. Rc8 {[%clk 0:01:22]}  a4 {[%clk 0:00:02]} 38. Re8 {[%clk 0:01:02]} 1-0


[Site "https://www.chess.com"]